Cogmind - Beta 16 @@@ ROGUE MODE // 2025.11.06 @ 17:29:07 Player: Rocko1345 Result: Destroyed by YE-3Y5(R) with Subdweller Laser Performance ------------- Evolutions (0) 0 Regions Visited (2) 400 Robots Destroyed (12) 60 Value Destroyed (456) 456 Prototype IDs (12) 240 Alien Tech Used (0) 0 Bonus (0) 0 TOTAL SCORE: 1156 Bonus ------- None Cogmind --------- Core Integrity 0/250 Matter 297/300 Energy 100/100 System Corruption 0% Temperature Cool (6) Movement Walking (260) Ox2 Location -10/Subcaves Parts ------- > --- POWER (1) -------- (None) > --- PROPULSION (2) --- Aluminum Leg > --- UTILITY (2) ------ Large Storage Unit > --- WEAPON (2) ------- Battle Rifle > --- INVENTORY (15) --- Subdweller Power Source Disposable Heat Sink Subdweller Optics Makeshift Light Armor Plating Makeshift Light Armor Plating Makeshift Thermal Plating Hacking Suite Rainbow Chip Subdweller Laser Subdweller Machine Gun Grenade Launcher Datajack Flamer Flamer Piercing Trap Peak State ------------ > --- POWER ------------ Ion Engine > --- PROPULSION ------- Subdweller Monowheel Subdweller Monowheel > --- UTILITY ---------- Large Storage Unit Improved Targeting Computer > --- WEAPON ----------- Battle Rifle Battle Rifle > --- INVENTORY -------- Subdweller Power Source Aluminum Leg Aluminum Leg Disposable Heat Sink Subdweller Optics Makeshift Light Armor Plating Hacking Suite Assault Rifle Subdweller Machine Gun Battle Cannon Grenade Launcher Datajack Flamer Piercing Trap [Rating: 14] Favorites ----------- Power Ion Engine Engine Ion Engine Propulsion Aluminum Leg Leg Aluminum Leg Wheel Compact Wheel Utility Large Storage Unit Storage Large Storage Unit Processor Improved Targeting Computer Weapon Battle Rifle Ballistic Gun Battle Rifle Ballistic Cannon Battle Cannon Launcher Grenade Launcher Build | -11 -10 -10 ------- Run | Yrd Mat Sub Slots Evolved . | . . . Power . | . . . Propulsion . | . . . Utility . | . . . Weapon . | . . . Parts Attached 28 | 6 3 19 Power 3 | 1 . 2 Engine 3 | 1 . 2 Core . | . . . Reactor . | . . . Propulsion 8 | 2 . 6 Treads . | . . . Leg 2 | . . 2 Wheel 6 | 2 . 4 Hover . | . . . Flight . | . . . Utility 3 | 1 2 . Device . | . . . Storage 2 | 1 1 . Processor 1 | . 1 . Hackware . | . . . Protection . | . . . Artifact . | . . . Weapon 14 | 2 1 11 Energy Gun . | . . . Energy Cannon . | . . . Ballistic Gun 12 | 2 1 9 Ballistic Cannon 1 | . . 1 Launcher 1 | . . 1 Special Weapon . | . . . Impact Weapon . | . . . Slashing Weapon . | . . . Piercing Weapon . | . . . Special Melee Weapon . | . . . Unidentified Prototypes . | . . . Parts Lost 13 | . . 13 Power 3 | . . 3 Propulsion 3 | . . 3 Utility 1 | . . 1 Weapon 6 | . . 6 Highest Loss Streak 5 | . . 5 To Critical Strikes 1 | . . 1 Average Backups 11 | 1 6 11 Power . | . 1 . Propulsion 1 | . 2 1 Utility 4 | . . 4 Weapon 3 | . 1 3 Tool/Special . | . . . Unused Backups 12 | . . 12 Power 1 | . . 1 Propulsion . | . . . Utility 7 | . . 7 Weapon 3 | . . 3 Tool/Special 1 | . . 1 Average Slot Usage (%) 91 | . 94 91 Engine 12 | . 14 12 Leg 8 | . . 9 Wheel 15 | . 28 14 Storage 14 | . 14 14 Processor 12 | . 8 12 Ballistic Gun 25 | . 28 25 Ballistic Cannon 1 | . . 1 Peak Build Rating 14 | 6 9 14 Average Rating 11 | 4 7 11 On Entrance 5 | . 6 9 Avg Prop Armor Cover (%) 4 | . . 4 Naked Turns . | . . . Heaviest Build 31 | 11 27 31 Greatest Support 40 | 20 20 40 Greatest Overweight (x) 2 | . 1 2 Average Overweight (x) . | . . . Largest Inventory Capacity 15 | 8 15 15 Average Capacity 14 | 7 10 15 Most Carried 15 | 3 10 15 Average Carried 11 | 1 6 12 Final Capacity 15 | 8 15 15 Final Carried 15 | 3 10 15 Class Distribution -------------------- 100% | Mutant Dominant Class ---------------- Mutant | -10/Materials Mutant | -10/Subcaves Resources | -11 -10 -10 ----------- Run | Yrd Mat Sub Matter Collected 986 | 208 . 778 Remotely . | . . . Salvage Created 395 | . 14 381 Parts 30 | . 2 28 Haulers Intercepted . | . . . Recyclers Shooed . | . . . Parts Field Recycled . | . . . Retrieved Matter . | . . . Parts Self-Destructed . | . . . Prevented . | . . . Parts Restored . | . . . Kills | -11 -10 -10 ------- Run | Yrd Mat Sub Combat Hostiles Destroyed 11 | . . 11 Guns 9 | . . 9 Cannons 2 | . . 2 Classes Destroyed 2 | . 1 1 Operator 1 | . 1 . Subdweller 11 | . . 11 Best Kill Streak 2 | . 1 2 Combat Bots Only 2 | . . 2 Max Kills in Single Turn 1 | . 1 1 Gunslinging . | . . . Exploded . | . . . Melee . | . . . Uniques/NPCs Destroyed . | . . . Combat | -11 -10 -10 -------- Run | Yrd Mat Sub Hostile Shots Fired 102 | . . 102 Missed 30 | . . 30 Hits 72 | . . 72 Projectile 72 | . . 72 Critical Strikes 3 | . . 3 Damage Taken 1571 | . . 1571 Core 264 | . . 264 Absorbed by Shields . | . . . Core Remaining (%) 100 | 100 . . Volleys Fired 82 | . 3 79 Largest 2 | . 2 2 Hottest 63 | . 40 63 Shots Fired 147 | . 6 141 Gun 131 | . 6 125 Cannon 10 | . . 10 Launcher 6 | . . 6 Special . | . . . Kinetic 141 | . 6 135 Thermal . | . . . Explosive 6 | . . 6 Electromagnetic . | . . . Robot Hit Streak 13 | . 1 13 Robot Miss Streak 2 | . 1 2 Penetration Max . | . . . Secondary Targets . | . . . Shots Hit Robots 91 | . 3 88 Core Hits 25 | . 2 23 Critical Kills . | . . . Critical Parts Destroyed 1 | . . 1 Critical Strikes 1 | . . 1 Destroy 1 | . . 1 Melee Attacks . | . . . Impact . | . . . Slashing . | . . . Piercing . | . . . Sneak Attacks . | . . . Combat Hostiles . | . . . Follow-up Attacks . | . . . Damage Inflicted 1434 | . 38 1396 Guns 1188 | . 38 1150 Cannons 148 | . . 148 Explosions 98 | . . 98 Melee . | . . . Ramming . | . . . Kinetic 1336 | . 38 1298 Thermal . | . . . Explosive 98 | . . 98 Electromagnetic . | . . . Impact . | . . . Slashing . | . . . Piercing . | . . . Highest Corruption . | . . . Average Corruption . | . . . Corruption Purged . | . . . Corruption Blocked . | . . . Overload Shots . | . . . Overflow Damage . | . . . Projectiles . | . . . Explosions . | . . . Melee . | . . . Knockbacks 1 | . . 1 Impact . | . . . Kinetic 1 | . . 1 Secondary . | . . . Self-Inflicted Damage . | . . . Shots . | . . . Rammed . | . . . Targets Rammed . | . . . Kicked . | . . . Crushed . | . . . Highest Temperature . | . . . Average Temperature . | . . . Received Heat Transfer 246 | . . 246 Siege Activations . | . . . Martial Activations . | . . . Shielding Activations . | . . . Robots Disrupted . | . . . Combat Hostiles . | . . . Robots Corrupted . | . . . Combat Hostiles . | . . . Parts Fried . | . . . Impact Corruptions . | . . . Robots Melted . | . . . Combat Hostiles . | . . . Parts Melted . | . . . Heat Transferred . | . . . Parts Sabotaged . | . . . Parts Stolen . | . . . Parts Stripped . | . . . Power Chain Reactions . | . . . Alert | -11 -10 -10 ------- Run | Yrd Mat Sub Maximum Alert Level . | . . . Low Security (%) 100 | 100 100 . Level 1 . | . . . Level 2 . | . . . Level 3 . | . . . Level 4 . | . . . Level 5 . | . . . High Security . | . . . Max Security . | . . . Peak Influence 5 | . 5 . Initial . | . . . Average . | . . . Influence Increases 11 | . 11 . Destroy 0b10 Robot/NC 5 | . 5 . Successful Hack 6 | . 6 . Influence Decreases 11 | . 11 . Time Decay 11 | . 11 . Squads Dispatched . | . . . Investigation . | . . . Extermination . | . . . Reinforcement . | . . . Assault . | . . . Garrison . | . . . Intercept . | . . . Searches Triggered . | . . . Construction Impeded . | . . . Haulers Reinforced . | . . . Active Scanning Responses . | . . . Cargo Convoy Interrupts . | . . . Stealth | -11 -10 -10 --------- Run | Yrd Mat Sub Distress Signals . | . . . Communications Jammed . | . . . Distress Signals . | . . . Times Spotted 16 | . 3 13 Peak Tracking Total 3 | . 2 3 Tactical Retreats . | . . . Traps | -11 -10 -10 ------- Run | Yrd Mat Sub Traps Triggered 1 | . . 1 Indirectly . | . . . Trap Hack Attempts . | . . . Triggered . | . . . Disarmed . | . . . Reprogrammed . | . . . Reused . | . . . Traps Extracted . | . . . Installed . | . . . Triggered . | . . . Most Traps Carried 1 | . . 1 Machines | -11 -10 -10 ---------- Run | Yrd Mat Sub Machines Disabled 1 | . . 1 Max in Single Turn 1 | . . 1 Machines Repaired . | . . . Machines Dismantled . | . . . Machines Sabotaged . | . . . Overloaded Fab Kills . | . . . Hacking | -11 -10 -10 --------- Run | Yrd Mat Sub Machines Accessed 2 | . 1 1 Terminals 1 | . 1 . Fabricators . | . . . Repair Stations . | . . . Recycling Units . | . . . Scanalyzers . | . . . Garrison Access . | . . . Total Hacks 11 | . 2 9 Successful 10 | . 1 9 Failed 1 | . 1 . Catastrophic 1 | . 1 . Database Lockouts . | . . . Manual 2 | . 2 . Terminals 2 | . 2 . Fabricators . | . . . Repair Stations . | . . . Recycling Units . | . . . Scanalyzers . | . . . Garrison Access . | . . . Terminal Hacks 9 | . . 9 Record 8 | . . 8 Proto ID Catalog 1 | . . 1 Fabricator Hacks . | . . . Repair Station Hacks . | . . . Recycling Unit Hacks . | . . . Scanalyzer . | . . . Garrison Access Hacks . | . . . Unauthorized Hacks 1 | . 1 . Terminals 1 | . 1 . Assimilate 1 | . 1 . Fabricators . | . . . Repair Stations . | . . . Recycling Units . | . . . Scanalyzers . | . . . Garrison Access . | . . . Data Cores Recovered . | . . . Used . | . . . Hacking Detections 1 | . 1 . Full Trace Events 1 | . 1 . Feedback Events . | . . . Feedback Blocked . | . . . Robot Schematics Acquired . | . . . Robots Built . | . . . Authchips . | . . . Time . | . . . Total Robot Build Rating . | . . . Part Schematics Acquired . | . . . Parts Built . | . . . Authchips . | . . . Time . | . . . Total Part Build Rating . | . . . Part Studies Acquired . | . . . Parts Repaired . | . . . Time . | . . . Parts Recycled . | . . . Recycled Matter . | . . . Retrieved Matter . | . . . Retrieved Components . | . . . Parts Scanalyzed . | . . . Part Schematics Acquired . | . . . Parts Damaged . | . . . Bothacking | -11 -10 -10 ------------ Run | Yrd Mat Sub Used RIF Installer . | . . . Robots Hacked . | . . . Non-combat . | . . . Combat . | . . . Robot Hacks Applied . | . . . Relay Couplers Released . | . . . Fabnet Peak Effective % . | . . . Robots Rewired . | . . . Allies Hacked . | . . . Hacks Repelled . | . . . Allies | -11 -10 -10 -------- Run | Yrd Mat Sub Total Allies . | . . . Largest Group . | . . . Highest-Rated Group . | . . . Highest-Rated Ally . | . . . Total Orders . | . . . Ally Attacks . | . . . Total Damage . | . . . Kills . | . . . Allies Corrupted . | . . . Allies Melted . | . . . Intel | -11 -10 -10 ------- Run | Yrd Mat Sub Active Infowar (turns) . | . . . Robot Analysis Total . | . . . Derelict Logs Recovered 1 | . . 1 Drone Launches . | . . . Drone Recoveries . | . . . Exploration | -11 -10 -10 ------------- Run | Yrd Mat Sub Turns Passed 3028 | 68 190 2770 Spaces Moved 2074 | 72 201 1801 Core 4 | 4 . . Treads . | . . . Legs 458 | . . 458 Wheels 1612 | 68 201 1343 Hover . | . . . Flight . | . . . Fastest Speed 50 | 50 80 95 Average Speed 126 | 78 83 132 Slowest Speed 260 | 80 95 260 Overloaded Moves . | . . . Propulsion Burnouts . | . . . Robots Hopped . | . . . Potential Cave-ins . | . . . Cave-ins Triggered . | . . . Exploration Rate (%) 33 | 4 31 65 Regions Visited 2 Branch Regions 1 Pre-discovered Areas . | . . . Known Exits Taken . | . . . Unknown Exits Taken 2 | 1 1 . Scrap Searched 12 | . . 12 Spaces Dug . | . . . Terrain Destroyed 26 | . . 26 Melee . | . . . Projectile . | . . . AOE 26 | . . 26 Terrain Rammed . | . . . Walls Destroyed . | . . . Machines Disabled . | . . . Actions | -11 -10 -10 --------- Run | Yrd Mat Sub Total 2334 | 80 216 2038 Wait 109 | . 1 108 Move 2072 | 71 200 1801 Hop . | . . . Pick Up 23 | 3 7 13 Fast Attach 9 | 6 1 2 Attach 10 | . . 10 Detach . | . . . Swap 18 | . 2 16 Drop 11 | . 2 9 Fire 82 | . 3 79 Melee . | . . . Ram . | . . . Kick . | . . . Crush . | . . . Escape Stasis . | . . . Rewire . | . . . Trap . | . . . Miscellaneous . | . . . Route ------- -11/Scrapyard -10/Materials (discovered 2 exits: [*Mat] / *Sub) -10/Subcaves (discovered 1 exit: [*Mat]) History --------- Turn | Location | Event 20 | -11/Scrapyard | Discovered new exit (range 13) 69 | -11/Scrapyard | Entered Materials 191 | -10/Materials | Discovered new exit (range 12) 245 | -10/Materials | Discovered new exit (range 9) 259 | -10/Materials | Entered Subcaves 324 | -10/Subcaves | Build established: Mutant 390 | -10/Subcaves | Lost 5 parts (1p2n2w) 756 | -10/Subcaves | Learned Materials garrison access intel 841 | -10/Subcaves | Shifting Twisted Machinery released Mak. Light Armor Plating 881 | -10/Subcaves | Shifting Twisted Machinery released Battle Cannon 983 | -10/Subcaves | Discovered new exit (range 13) 1924 | -10/Subcaves | Visited 4L-MR0's lab 1967 | -10/Subcaves | Found Rainbow Chip 2611 | -10/Subcaves | Core integrity fell below 50% 2784 | -10/Subcaves | Core integrity fell below 20% 2806 | -10/Subcaves | Lost 3 parts (1p1n1w) 2915 | -10/Subcaves | Shifting Twisted Machinery released Mak. Light Armor Plating 2917 | -10/Subcaves | Shifting Twisted Machinery released Sub. Shrapnel Launcher 3029 | -10/Subcaves | Destroyed by YE-3Y5(R) with Subdweller Laser Last Messages --------------- 02825_ Searching scrap... 02825_ Found Sub. Laser. 02825_ Found 68 Matter. 02826_ Acquired 55 matter. 02834_ Acquired 1 matter. 02836_ Acquired 4 matter. 02839_ Searching scrap... 02839_ Found Flamer. 02839_ Found 66 Matter. 02840_ Acquired 5 matter. 02844_ Acquired Flamer. 02861_ Searching scrap... 02861_ Found Sub. Laser. 02861_ Found 63 Matter. 02866_ Subatomizers dissect the Sub. Optics. 02866_ Acquired Sub. Laser. 02877_ Subatomizers dissect the Sub. Optics. Mak. Light Armor Plating falls loose from the Twisted Machinery. Sub. Shrapnel Launcher falls loose from the Twisted Machinery. 03027_ Battle Cannon destroyed. Map ----- +----------------------------------------------------+ | ##?????????????????????# #??# | | ???????????????????????# # #??# | | ???????????????????????## ### # #??## ## | | ????????????????????????######?## #???###### | | ????????????????????????????????# ###?????# | | ????????????????????????????????# ## #?????## | | ????????????????????????????????#### ####??# | | ???????????????????????????????????# ###?# | | ???????????????????????????????????### #### | | ?????????????????????????????????????## ## ###& | | ??????????????????????????????????????###### ## | | ????????????????????????????????########???# & | | ????????????????????????????????# ##??## & & | | ?????????#######????????????????# #???## & # | | ?????????# %#=|#????????????????# ###??##### | | ?????????#[= %#?????????????????# #?????## | | ?????????##"&###??????????????????# #?????## | | ?????????### %#####???????????????# #?????# | | ?????????# # ## #???????????????## #?????# | | ???????### " #???????????##????#" ##????## | | ???????# # ####???????#"#????## ##???## | | ?????### ######## ##????## ##??# | | ????## """"" # # " #?????#### ##?# | | ????# %% & " "##????????## ### | | ????# %## ## R "###??####### | | ????# ########### "# @ ""#### # ## | | ????# #????# ## # ""!% | | ????##% ##??## ## # # & "" |! ### | | ?????## ##### # # ##* %## ### ##?### | | ??????# ## """" # #?# ##????## | | ????### #"#""### " ### #?# #?????## | | ????# #####""%|?#### ##### #?# #? ### | | ????### ###????#"" ????# # #### # | | ??????# ##??????" ""????# #? | | ??????#"" #???????? ?" ???# # # ## ##? | | ?????#"" ""!#??????????????############ ### | | ?????#" "" %"#????????????????????????# ### | | ?????## """]"""???????????????????????# ### | | ??????## """"???????????????????????### ## | | ??????? ###""?????????????????????????## ### | | ??????? "???????????????????????????????# ##?# | | ??????? "???????????????????????????????## ### | | ???????? ???????????????????????????????### ## | | ????????????????????????????????????????# | | ????????????????????????????????????????## # | | ????????????????????????????????????????# ## | | ????????????????????????????????????????## ###### | | ?????????????????????????????????????????# ##??? | | ????????????????????????????????????????# # ##?? | | ????????????????????????????????????????### ### | +----------------------------------------------------+ Best States ------------- Heat Dissipation 25 Energy Generation 10 Energy Capacity 250 Matter Stores 300 Matter Capacity 300 Sight Range 16 Terrain Scan Density 10 Evasion (%) 44 Targeting Accuracy 6 Item Schematics ----------------- None Robot Schematics ------------------ None Fabricated ------------ Nothing Repaired ---------- Nothing Studied --------- None Alien Tech Used ----------------- None Achievements -------------- Mistaken Identity Challenges ------------ None Game ------ Seed EnergyHardcellReconfigurator Manual? 0 Play Time 00:16:57 Cumulative 238.7 hours Start 2025.11.06 @ 17:12:44 End 2025.11.06 @ 17:29:07 Sessions 1 Manual Loads 0 Difficulty Rogue Special Mode None Game No. 290 Rogue 116 Adventurer 174 Explorer 0 Win Type - Total 1 Types 1/0/0/0/0/0/0/0/0/0 Lore% 66 Gallery% 60 Achievement% 42 Wizard Run 0 Options --------- Layout 0 ASCII 0 Keyboard 1 Movement Numpad Keybinds 0 Fullscreen 1 Font 18/Terminus Map View 76x50 Zoom Use 0% Tactical HUD 1 Map Filters NONE Filters NONE Steam 1 RUN: de6c84b5-d473-45dd-9128-cfd008d5c764